fUST/lending_fUST_20250522
["ID","MTS","AMOUNT","RATE_DAILY","PERIOD"]
[361874235,1747860555341,-430.0,0.00021917,2]
[361874236,1747860555360,-430.0,0.00021917,2]
[361874237,1747860555382,-430.0,0.00021917,2]
[361874238,1747860555402,-430.0,0.00021917,2]
[361874239,1747860555422,-430.0,0.00021917,2]
[361874240,1747860555442,-430.0,0.00021917,2]
[361874241,1747860555463,-430.0,0.00021917,2]
[361874242,1747860555488,-430.0,0.00021917,2]
[361874243,1747860555513,-463.12,0.00021917,2]
[361874244,1747860555535,-430.0,0.00021917,2]
[361874245,1747860555559,-430.0,0.00021917,2]
[361874246,1747860555583,-430.0,0.00021917,2]
[361874247,1747860555603,-430.0,0.00021917,2]
[361874248,1747860555624,-400.0,0.00021917,2]
[361874249,1747860555645,-430.0,0.00021917,2]
[361874250,1747860555665,-430.0,0.00021917,2]
[361874251,1747860555687,-500.0,0.00021917,2]
[361874252,1747860555707,-500.0,0.00021917,2]
[361874253,1747860555728,-500.0,0.00021917,2]
[361874254,1747860555748,-430.0,0.00021917,2]
[361874255,1747860555769,-430.0,0.00021917,2]
[361874256,1747860555790,-242.72359382,0.00021917,2]
[361874257,1747860560114,-127.27640618,0.00021917,2]
[361874258,1747860560140,-430.0,0.00021917,2]
[361874259,1747860560163,-430.0,0.00021917,2]
[361874260,1747860560187,-430.0,0.00021917,2]
[361874261,1747860560209,-500.0,0.0002219,2]
[361874262,1747860560231,-1598.6,0.00022191,2]
[361874263,1747860560252,-430.0,0.00022191,2]
[361874264,1747860560273,-430.0,0.00022191,2]
[361874265,1747860560294,-430.0,0.00022191,2]
[361874266,1747860560315,-430.0,0.00022191,2]
[361874267,1747860560336,-430.0,0.00022191,2]
[361874268,1747860560357,-430.0,0.00022191,2]
[361874269,1747860560382,-430.0,0.00022191,2]
[361874270,1747860560403,-430.0,0.00022191,2]
[361874271,1747860560426,-463.12,0.00022191,2]
[361874272,1747860560447,-430.0,0.00022191,2]
[361874273,1747860560472,-430.0,0.00022191,2]
[361874274,1747860560494,-430.0,0.00022191,2]
[361874275,1747860560516,-430.0,0.00022191,2]
[361874276,1747860560538,-430.0,0.00022191,2]
[361874277,1747860560559,-430.0,0.00022191,2]
[361874278,1747860560581,-430.0,0.00022191,2]
[361874279,1747860560602,-430.0,0.00022191,2]
[361874280,1747860560623,-430.0,0.00022191,2]
[361874281,1747860560644,-430.0,0.00022309,2]
[361874282,1747860560668,-457.63,0.00022309,2]
[361874283,1747860560689,-430.0,0.00022309,2]
[361874284,1747860560711,-430.0,0.00022309,2]
[361874285,1747860560732,-430.0,0.00022309,2]
[361874286,1747860560754,-281.69,0.00022309,2]
[361874287,1747860560774,-430.0,0.00022311,2]
[361874288,1747860560795,-383.03584023,0.00022311,2]
[361874289,1747860560817,-1598.6,0.00022465,2]
[361874290,1747860560839,-430.0,0.00022465,2]
[361874291,1747860560861,-463.12,0.00022465,2]
[361874292,1747860560887,-430.0,0.00022465,2]
[361874293,1747860560908,-430.0,0.00022465,2]
[361874294,1747860560930,-457.63,0.00022583,2]
[361874295,1747860560952,-430.0,0.00022585,2]
[361874296,1747860560975,-1598.6,0.00022739,2]
[361874297,1747860560998,-430.0,0.00022739,2]
[361874298,1747860561020,-463.12,0.00022739,2]
[361874299,1747860561041,-430.0,0.00022739,2]
[361874300,1747860561063,-430.0,0.00022739,2]
[361874301,1747860561085,-134.74088014,0.00022857,2]
[361874339,1747860631906,-300.0,0.00021916,2]
[361874341,1747860631922,-430.0,0.00021917,2]
[361874343,1747860631935,-430.0,0.00021917,2]
[361874346,1747860631947,-430.0,0.00021917,2]
[361874348,1747860631957,-430.0,0.00021917,2]
[361874349,1747860631969,-430.0,0.00021917,2]
[361874351,1747860631979,-430.0,0.00021917,2]
[361874353,1747860631989,-430.0,0.00021917,2]
[361874355,1747860631999,-430.0,0.00021917,2]
[361874357,1747860632008,-430.0,0.00021917,2]
[361874359,1747860632018,-430.0,0.00022191,2]
[361874361,1747860632027,-430.0,0.00022191,2]
[361874363,1747860632036,-430.0,0.00022191,2]
[361874365,1747860632045,-498.27694409,0.00022191,2]
[361874367,1747860632054,-270.0,0.00022191,2]
[361874368,1747860632064,-430.0,0.00022191,2]
[361874369,1747860632073,-430.0,0.00022191,2]
[361874370,1747860632082,-354.40250561,0.00022311,2]
[361874371,1747860632092,-280.67,0.00022465,2]
[361874372,1747860632101,-430.0,0.00022465,2]
[361874373,1747860632110,-430.0,0.00022465,2]
[361874374,1747860632120,-430.0,0.00022739,2]
[361874375,1747860632129,-430.0,0.00022739,2]
[361874376,1747860632139,-322.88911986,0.00022857,2]
[361874377,1747860632148,-430.0,0.00022859,2]
[361874378,1747860632157,-1598.6,0.00023013,2]
[361874379,1747860632167,-430.0,0.00023013,2]
[361874380,1747860632176,-463.12,0.00023013,2]
[361874381,1747860632188,-430.0,0.00023013,2]
[361874382,1747860632198,-430.0,0.00023013,2]
[361874383,1747860632207,-430.0,0.00023013,2]
[361874384,1747860632217,-558.04,0.00023013,2]
[361874385,1747860632227,-28.82709975,0.00023104,2]
[361874386,1747860632237,-457.63,0.00023131,2]
[361874387,1747860632247,-151.0,0.00023132,2]
[361874388,1747860632257,-657.08,0.00023132,2]
[361874389,1747860632266,-216.48,0.00023133,2]
[361874390,1747860632276,-163.71378296,0.00023187,2]
[361874391,1747860632285,-422.71322487,0.00023266,2]
[361874392,1747860632295,-160.0,0.00023266,2]
[361874393,1747860632305,-894.64583333,0.00023269,2]
[361874394,1747860632314,-362.78658945,0.00023286,2]
[361874395,1747860632324,-400.0,0.00023286,2]
[361874396,1747860632334,-430.0,0.00023287,2]
[361874397,1747860632343,-1598.6,0.00023287,2]
[361874398,1747860632353,-380.47,0.00023287,2]
[361874399,1747860632363,-463.12,0.00023287,2]
[361874400,1747860632373,-430.0,0.00023287,2]
[361874401,1747860632383,-568.53,0.00023287,2]
[361874402,1747860632393,-430.0,0.00023287,2]
[361874403,1747860632403,-6032.01,0.00023287,2]
[361874404,1747860632413,-10872.0,0.00023346,120]
[361874405,1747860632423,-173.0,0.00023346,120]
[361874406,1747860632432,-10872.0,0.00023356,120]
[361874407,1747860632442,-173.0,0.00023356,120]
[361874408,1747860632452,-272.13534502,0.00023366,2]
[361874409,1747860632462,-10872.0,0.00023366,120]
[361874410,1747860632472,-173.0,0.00023366,120]
[361874411,1747860632482,-400.0,0.00023376,2]
[361874412,1747860632492,-428.81033719,0.00023376,2]
[361874413,1747860632501,-430.0,0.00023376,2]
[361874414,1747860632510,-430.0,0.00023376,2]
[361874415,1747860632520,-430.0,0.00023376,2]
[361874416,1747860632529,-430.0,0.00023376,2]
[361874417,1747860632539,-370.0,0.00023376,2]
[361874418,1747860632549,-430.0,0.00023376,2]
[361874419,1747860632559,-430.0,0.00023376,2]
[361874420,1747860632568,-430.0,0.00023376,2]
[361874421,1747860632578,-430.0,0.00023376,2]
[361874422,1747860632587,-420.0,0.00023376,2]
[361874423,1747860632598,-165.34009342,0.00023376,2]
[361874424,1747860632607,-430.0,0.00023376,2]
[361874425,1747860632617,-430.0,0.00023376,2]
[361874426,1747860632626,-430.0,0.00023376,2]
[361874427,1747860632636,-400.0,0.00023376,2]
[361874428,1747860632645,-509.93442164,0.00023376,2]
[361874429,1747860632655,-430.0,0.00023376,2]
[361874430,1747860632664,-430.0,0.00023376,2]
[361874431,1747860632674,-430.0,0.00023376,2]
[361874432,1747860632684,-430.0,0.00023376,2]
[361874433,1747860632694,-430.0,0.00023376,2]
[361874434,1747860632703,-430.0,0.00023376,2]
[361874435,1747860632713,-430.0,0.00023376,2]
[361874436,1747860632723,-430.0,0.00023376,2]
[361874437,1747860632732,-430.0,0.00023376,2]
[361874438,1747860632742,-430.0,0.00023376,2]
[361874439,1747860632751,-430.0,0.00023376,2]
[361874440,1747860632761,-430.0,0.00023376,2]
[361874441,1747860632771,-430.0,0.00023376,2]
[361874442,1747860632780,-430.0,0.00023376,2]
[361874443,1747860632790,-430.0,0.00023376,2]
[361874444,1747860632799,-430.0,0.00023376,2]
[361874445,1747860632809,-430.0,0.00023376,2]
[361874446,1747860632819,-500.0,0.00023376,2]
[361874447,1747860632829,-430.0,0.00023376,2]
[361874448,1747860632838,-400.0,0.00023376,2]
[361874449,1747860632849,-430.0,0.00023376,2]
[361874450,1747860632858,-430.0,0.00023376,2]
[361874451,1747860632867,-430.0,0.00023376,2]
[361874452,1747860632877,-430.0,0.00023376,2]
[361874453,1747860632886,-430.0,0.00023376,2]
[361874454,1747860632897,-401.6623163,0.00023376,2]
[361874455,1747860632907,-430.0,0.00023376,2]
[361874456,1747860632919,-430.0,0.00023376,2]
[361874457,1747860632929,-430.0,0.00023376,2]
[361874458,1747860632941,-400.57970592,0.00023376,2]
[361874459,1747860632951,-430.0,0.00023376,2]
[361874460,1747860632961,-430.0,0.00023376,2]
[361874461,1747860632971,-381.41467323,0.00023376,2]
[361874462,1747860632981,-430.0,0.00023376,2]
[361874463,1747860632994,-430.0,0.00023376,2]
[361874464,1747860633004,-430.0,0.00023376,2]
[361874465,1747860633013,-430.0,0.00023376,2]
[361874466,1747860633023,-430.0,0.00023376,2]
[361874467,1747860633032,-430.0,0.00023376,2]
[361874468,1747860633042,-430.0,0.00023376,2]
[361874469,1747860633052,-430.0,0.00023376,2]
[361874470,1747860633062,-430.0,0.00023376,2]
[361874471,1747860633072,-430.0,0.00023376,2]
[361874472,1747860633082,-430.0,0.00023376,2]
[361874473,1747860633093,-430.0,0.00023376,2]
[361874474,1747860633103,-430.0,0.00023376,2]
[361874475,1747860633112,-430.0,0.00023376,2]
[361874476,1747860633122,-457.63,0.00023405,2]
[361874477,1747860633132,-657.08,0.00023406,2]
[361874478,1747860633142,-338.67164563,0.00023463,2]
[361874479,1747860633152,-163.71378295,0.0002354,2]
[361874480,1747860633161,-1914.04286158,0.0002355,2]
[361874481,1747860633171,-430.0,0.00023561,2]
[361874482,1747860633180,-1598.6,0.00023561,2]
[361874483,1747860633191,-463.12,0.00023561,2]
[361874484,1747860633201,-430.0,0.00023561,2]
[361874485,1747860633210,-430.0,0.00023561,2]
[361874486,1747860633220,-430.0,0.0002365,2]
[361874487,1747860633229,-340.0,0.0002365,2]
[361874488,1747860633239,-430.0,0.0002365,2]
[361874489,1747860633249,-430.0,0.0002365,2]
[361874490,1747860633258,-340.0,0.0002365,2]
[361874491,1747860633268,-430.0,0.0002365,2]
[361874492,1747860633278,-430.0,0.0002365,2]
[361874493,1747860633287,-430.0,0.0002365,2]
[361874494,1747860633297,-500.0,0.0002365,2]
[361874495,1747860633306,-430.0,0.0002365,2]
[361874496,1747860633315,-430.0,0.0002365,2]
[361874497,1747860633324,-430.0,0.0002365,2]
[361874498,1747860633334,-500.0,0.0002365,2]
[361874499,1747860633343,-430.0,0.0002365,2]
[361874500,1747860633353,-430.0,0.0002365,2]
[361874501,1747860633363,-430.0,0.0002365,2]
[361874502,1747860633372,-430.0,0.0002365,2]
[361874503,1747860633382,-430.0,0.0002365,2]
[361874504,1747860633392,-430.0,0.0002365,2]
[361874505,1747860633401,-430.0,0.0002365,2]
[361874506,1747860633411,-430.0,0.0002365,2]
[361874507,1747860633421,-457.63,0.00023679,2]
[361874508,1747860633431,-657.08,0.0002368,2]
[361874509,1747860633442,-420.0,0.00023817,2]
[361874510,1747860633452,-430.0,0.00023835,2]
[361874511,1747860633461,-1598.6,0.00023835,2]
[361874512,1747860633471,-463.12,0.00023835,2]
[361874513,1747860633481,-430.0,0.00023835,2]
[361874514,1747860633491,-368.28,0.00023835,2]
[361874515,1747860633502,-163.71378295,0.00023894,2]
[361874516,1747860633512,-1141.09544358,0.000239,10]
[361874517,1747860633522,-500.0,0.00023924,2]
[361874518,1747860633532,-542.21,0.00023924,2]
[361874519,1747860633542,-430.0,0.00023924,2]
[361874520,1747860633553,-430.0,0.00023924,2]
[361874521,1747860633563,-258.2,0.00023924,2]
[361874522,1747860633573,-457.63,0.00023953,2]
[361874523,1747860633582,-657.08,0.00023954,2]
[361874524,1747860633592,-1141.0954433,0.00023969,10]
[361874525,1747860633602,-1141.0954433,0.00024038,10]
[361874526,1747860633612,-1141.0954433,0.00024107,10]
[361874527,1747860633623,-500.0,0.00024108,2]
[361874528,1747860633634,-400.0,0.00024108,2]
[361874529,1747860633645,-358.57,0.00024109,2]
[361874530,1747860633659,-1598.6,0.00024109,2]
[361874531,1747860633670,-463.12,0.00024109,2]
[361874532,1747860633681,-430.0,0.00024109,2]
[361874533,1747860633693,-1141.0954433,0.00024176,10]
[361874534,1747860633705,-151.0,0.00024185,2]
[361874535,1747860633716,-207.4,0.00024185,2]
[361874536,1747860633728,-500.0,0.00024198,2]
[361874537,1747860633738,-500.0,0.00024198,2]
[361874538,1747860633749,-430.0,0.00024198,2]
[361874539,1747860633760,-430.0,0.00024198,2]
[361874540,1747860633770,-457.63,0.00024227,2]
[361874541,1747860633780,-657.08,0.00024228,2]
[361874542,1747860633790,-1141.0954433,0.00024245,10]
[361874543,1747860633801,-1139.8327588,0.00024247,2]
[361874544,1747860633811,-352.0618428,0.00024247,2]
[361874545,1747860633821,-316.2931888,0.00024247,2]
[361874546,1747860633831,-153.0,0.00024247,2]
[361874547,1747860633841,-158.1465944,0.00024247,2]
[361874548,1747860633969,-153.0,0.00024247,2]
[361874549,1747860633980,-569.9163794,0.00024247,2]
[361874550,1747860633990,-176.0309214,0.00024247,2]
[361874551,1747860634000,-158.1465944,0.00024247,2]
[361874552,1747860634010,-176.0309214,0.00024247,2]
[361874553,1747860634021,-569.9163794,0.00024247,2]
[361874554,1747860634031,-158.1465944,0.00024247,2]
[361874555,1747860634041,-569.9163794,0.00024247,2]
[361874556,1747860634050,-176.0309214,0.00024247,2]
[361874557,1747860634060,-569.9163794,0.00024247,2]
[361874558,1747860634070,-158.1465944,0.00024247,2]
[361874559,1747860634080,-158.1465944,0.00024247,2]
[361874560,1747860634090,-569.9163794,0.00024247,2]
[361874561,1747860634100,-813.6079191,0.00024247,2]
[361874562,1747860634110,-154.4818223,0.00024247,2]
[361874563,1747860634120,-163.71378295,0.00024247,2]
[361874564,1747860634129,-1141.0954433,0.00024314,10]
[361874565,1747860634139,-392.46135941,0.00024382,2]
[361874566,1747860634148,-500.0,0.00024382,2]
[361874567,1747860634158,-500.0,0.00024382,2]
[361874568,1747860634167,-352.62950827,0.00024382,2]
[361874569,1747860634176,-500.0,0.00024382,2]
[361874570,1747860634186,-500.0,0.00024382,2]
[361874571,1747860634197,-500.0,0.00024382,2]
[361874572,1747860634207,-500.0,0.00024382,2]
[361874573,1747860634217,-500.0,0.00024382,2]
[361874574,1747860634226,-520.84073277,0.00024382,2]
[361874575,1747860634237,-1141.0954433,0.00024383,11]
[361874576,1747860634247,-1598.6,0.00024383,2]
[361874577,1747860634256,-463.12,0.00024383,2]
[361874578,1747860634266,-430.0,0.00024383,2]
[361874579,1747860634276,-1141.0954433,0.00024452,11]
[361874580,1747860634285,-500.0,0.00024472,2]
[361874581,1747860634295,-472.81358982,0.00024472,2]
[361874582,1747860634305,-166.18,0.00024472,2]
[361874583,1747860634314,-457.63,0.00024501,2]
[361874584,1747860634324,-657.08,0.00024502,2]
[361874585,1747860634333,-1141.0954433,0.00024521,11]
[361874586,1747860634342,-1141.0954433,0.0002459,11]
[361874587,1747860634351,-163.71378295,0.000246,2]
[361874588,1747860634361,-153.0,0.00024603,2]
[361874589,1747860634370,-153.0,0.00024603,2]
[361874590,1747860634380,-153.0,0.00024603,2]
[361874591,1747860634389,-132.596149,0.00024603,2]
[361874592,1747860634403,-20.403851,0.00024603,2]
[361874593,1747860634413,-153.0,0.00024603,2]
[361874594,1747860634422,-158.0682864,0.00024603,2]
[361874595,1747860634431,-1914.04286158,0.0002463,2]
[361874596,1747860634442,-344.80725714,0.00024657,2]
[361874597,1747860634452,-200.0,0.00024657,2]
[361874598,1747860634461,-1598.6,0.00024657,2]
[361874599,1747860634470,-463.12,0.00024657,2]
[361874600,1747860634480,-430.0,0.00024657,2]
[361874601,1747860634489,-273.79041748,0.00024658,2]
[361874602,1747860634499,-500.0,0.00024658,2]
[361874603,1747860634508,-500.0,0.00024658,2]
[361874604,1747860634518,-500.0,0.00024658,2]
[361874605,1747860634527,-500.0,0.00024658,2]
[361874606,1747860634536,-500.0,0.00024658,2]
[361874607,1747860634545,-500.0,0.00024658,2]
[361874608,1747860634555,-500.0,0.00024658,2]
[361874609,1747860634565,-168.32356167,0.00024658,2]
[361874610,1747860634574,-1141.0954433,0.00024659,11]
[361874611,1747860634584,-32389.41205012,0.0002466,7]
[361874612,1747860634593,-32389.41205012,0.0002466,7]
[361874613,1747860634602,-10078.06304129,0.0002466,7]
[361874614,1747860634611,-10078.06304129,0.0002466,7]
[361874615,1747860634621,-202.10439689,0.00024673,2]
[361874616,1747860634631,-576.57,0.000247,2]
[361874617,1747860634640,-7927.11,0.000247,7]
[361874618,1747860634651,-545650.28,0.000247,7]
[361874619,1747860634660,-21015.32,0.000247,2]
[361874620,1747860634669,-151.0,0.000247,6]
[361874621,1747860634678,-1141.0954433,0.00024728,11]
[361874622,1747860634688,-10872.0,0.0002473,120]
[361874623,1747860634698,-173.0,0.0002473,120]
[361874624,1747860634709,-10872.0,0.0002474,120]
[361874625,1747860634719,-173.0,0.0002474,120]
[361874626,1747860634728,-500.0,0.00024746,30]
[361874627,1747860634738,-500.0,0.00024746,2]
[361874628,1747860634747,-10872.0,0.0002475,120]
[361874629,1747860634757,-173.0,0.0002475,120]
[361874630,1747860634767,-457.63,0.00024775,2]
[361874631,1747860634777,-657.08,0.00024776,2]
[361874632,1747860634786,-1141.0954433,0.00024797,11]
[361874633,1747860634795,-217144.939452,0.000248,2]
[361874634,1747860634805,-8174.22692544,0.00024831,2]
[361874635,1747860634814,-1141.0954433,0.00024866,12]
[361874636,1747860634824,-271.21,0.0002488,120]
[361874637,1747860634834,-150.5,0.0002489,120]
[361874638,1747860634843,-167.01,0.0002489,120]
[361874639,1747860634853,-38319.6951975,0.0002489,2]
[361874640,1747860634863,-710675.845173,0.000249,2]
[361874641,1747860634872,-8174.22692542,0.00024929,2]
[361874642,1747860634882,-1598.6,0.00024931,2]
[361874643,1747860634894,-463.12,0.00024931,2]
[361874644,1747860634904,-430.0,0.00024931,2]
[361874645,1747860634913,-1141.0954433,0.00024934,12]
[361874646,1747860634923,-1000.0,0.00024992,2]
[361874647,1747860634933,-202.0,0.00025,120]
[361874648,1747860634944,-10872.0,0.00025,120]
[361874649,1747860634953,-173.0,0.00025,120]
[361874650,1747860634963,-2000.0,0.00025,30]
[361874651,1747860634975,-4778.67094488,0.00025,7]
[361874652,1747860634985,-1141.0954433,0.00025003,12]
[361874653,1747860634996,-10872.0,0.0002501,120]
[361874654,1747860635005,-173.0,0.0002501,120]
[361874655,1747860635015,-960.0,0.00025017,2]
[361874656,1747860635025,-150.0,0.00025017,2]
[361874657,1747860635035,-500.0,0.0002502,2]
[361874658,1747860635044,-8174.22692542,0.00025026,2]
[361874659,1747860635055,-457.63,0.00025049,2]
[361874660,1747860635065,-657.08,0.0002505,2]
[361874661,1747860635074,-1141.0954433,0.00025072,12]
[361874662,1747860635085,-8174.22692542,0.00025124,2]
[361874663,1747860635094,-1000.0,0.00025129,2]
[361874664,1747860635105,-1141.0954433,0.00025141,12]
[361874665,1747860635115,-1598.6,0.00025205,2]
[361874666,1747860635125,-463.12,0.00025205,2]
[361874667,1747860635134,-430.0,0.00025205,2]
[361874668,1747860635143,-1141.0954433,0.0002521,12]
[361874669,1747860635152,-8174.22692542,0.00025221,2]
[361874670,1747860635162,-1000.0,0.00025266,2]
[361874671,1747860635172,-1141.0954433,0.00025279,12]
[361874672,1747860635181,-500.0,0.00025294,30]
[361874673,1747860635191,-500.0,0.00025294,2]
[361874674,1747860635200,-8174.22692542,0.00025319,2]
[361874675,1747860635209,-457.63,0.00025323,2]
[361874676,1747860635218,-657.08,0.00025324,2]
[361874677,1747860635227,-1141.0954433,0.00025348,13]
[361874678,1747860635236,-1000.0,0.00025403,2]
[361874679,1747860635245,-8174.22692542,0.00025416,2]
[361874680,1747860635254,-1141.0954433,0.00025417,13]
[361874681,1747860635263,-209.7788329,0.00025425,2]
[361874682,1747860635272,-1598.6,0.00025479,2]
[361874683,1747860635282,-463.12,0.00025479,2]
[361874684,1747860635291,-430.0,0.00025479,2]
[361874685,1747860635300,-1141.0954433,0.00025486,13]
[361874686,1747860635310,-542.73,0.000255,31]
[361874687,1747860635319,-542.73,0.000255,31]
[361874688,1747860635329,-542.73,0.000255,31]
[361874689,1747860635338,-542.73,0.000255,31]
[361874690,1747860635347,-542.73,0.000255,31]
[361874691,1747860635357,-542.73,0.000255,31]
[361874692,1747860635367,-542.73,0.000255,31]
[361874693,1747860635376,-542.73,0.000255,31]
[361874694,1747860635386,-542.73,0.000255,31]
[361874695,1747860635395,-542.73,0.000255,31]
[361874696,1747860635404,-542.73,0.000255,31]
[361874697,1747860635413,-542.73,0.000255,31]
[361874698,1747860635423,-542.73,0.000255,31]
[361874699,1747860635433,-542.73,0.000255,31]
[361874700,1747860635443,-542.73,0.000255,31]
[361874701,1747860635453,-542.73,0.000255,31]
[361874702,1747860635462,-8174.22692542,0.00025514,2]
[361874703,1747860635471,-1000.0,0.0002554,2]
[361874704,1747860635480,-151.0,0.00025554,2]
[361874705,1747860635490,-215.0738,0.00025554,2]
[361874706,1747860635500,-1141.0954433,0.00025555,13]
[361874707,1747860635510,-500.0,0.00025568,2]
[361874708,1747860635521,-457.63,0.00025597,2]
[361874709,1747860635530,-657.08,0.00025598,2]
[361874710,1747860635540,-2000.0,0.000256,2]
[361874711,1747860635550,-152509.32005699,0.000256,7]
[361874712,1747860635632,-184288.86962417,0.000256,7]
[361874782,1747860642635,-8464.75054713,0.000256,7]
[361874828,1747860646256,-5583.22144298,0.000256,7]
[361874829,1747860646341,-4289.3564196,0.000256,7]
[361874830,1747860649217,-212.41679935,0.00022577,2]
[361874831,1747860649227,-1531.45275094,0.000256,7]
[361874832,1747860649242,-2698.7123019,0.000256,7]
[361874833,1747860649545,-503.04030991,0.000256,7]
[361874834,1747860649578,-430.0,0.00021917,2]
[361874835,1747860649587,-430.0,0.00022191,2]
[361874836,1747860649597,-430.0,0.00022465,2]
[361874837,1747860649607,-374.01,0.00022739,2]
[361874838,1747860649617,-1060.9899525,0.000256,7]
[361874839,1747860651436,-15061.07952359,0.000256,7]
[361874840,1747860651840,-1337.19934855,0.000256,7]
[361874841,1747860655520,-3870.87952935,0.000256,7]
[361874844,1747860790464,165.677398,0.00013699,2]
[361874858,1747861628111,-377.08642364,0.0002056,2]
[361874859,1747861634122,-1286.51064798,0.0002056,2]
[361874860,1747861651106,-577.89874846,0.00020813,2]
[361874861,1747861746099,-200.0,0.00020331,2]
[361874862,1747861756121,-4422.10125154,0.00020813,2]
[361874863,1747861756143,-660.858048,0.00021024,2]
[361874864,1747861756166,-165.677398,0.00021404,2]
[361874865,1747861756190,-1641.87864995,0.00021562,2]
[361874866,1747861756213,-300.0,0.00021729,2]
[361874867,1747861756238,-11847.0372493,0.0002173,2]
[361874868,1747861756260,-157.323,0.0002173,2]
[361874869,1747861756282,-306.94272936,0.00021817,2]
[361874870,1747861756303,-348.60073904,0.000219,7]
[361874871,1747861756329,-295.35851579,0.000219,6]
[361874872,1747861756354,-500.0,0.00021915,2]
[361874873,1747861756381,-500.0,0.00021915,2]
[361874874,1747861756406,-500.0,0.00021915,2]
[361874875,1747861756431,-500.0,0.00021915,2]
[361874876,1747861756456,-500.0,0.00021915,2]
[361874877,1747861756481,-500.0,0.00021915,2]
[361874878,1747861756505,-500.0,0.00021915,2]
[361874879,1747861756530,-500.0,0.00021915,2]
[361874880,1747861756554,-500.0,0.00021915,2]
[361874881,1747861756578,-500.0,0.00021915,2]
[361874882,1747861756603,-500.0,0.00021915,2]
[361874883,1747861756629,-500.0,0.00021915,2]
[361874884,1747861756652,-500.0,0.00021915,2]
[361874885,1747861756677,-500.0,0.00021915,2]
[361874886,1747861756700,-500.0,0.00021915,2]
[361874887,1747861756724,-500.0,0.00021915,2]
[361874888,1747861756748,-500.0,0.00021915,2]
[361874889,1747861756772,-500.0,0.00021915,2]
[361874890,1747861756794,-500.0,0.00021915,2]
[361874891,1747861756818,-500.0,0.00021915,2]
[361874892,1747861756841,-500.0,0.00021915,2]
[361874893,1747861756865,-500.0,0.00021915,2]
[361874894,1747861756888,-500.0,0.00021915,2]
[361874895,1747861756912,-500.0,0.00021915,2]
[361874896,1747861756937,-500.0,0.00021915,2]
[361874897,1747861756960,-500.0,0.00021915,2]
[361874898,1747861756985,-500.0,0.00021915,2]
[361874899,1747861757009,-650.99231435,0.00021915,2]
[361874900,1747861757033,-500.0,0.00021915,2]
[361874901,1747861757057,-500.0,0.00021915,2]
[361874902,1747861757081,-500.0,0.00021915,2]
[361874903,1747861757104,-500.0,0.00021915,2]
[361874904,1747861757127,-500.0,0.00021915,2]
[361874905,1747861757151,-500.0,0.00021915,2]
[361874906,1747861757174,-500.0,0.00021915,2]
[361874907,1747861757197,-300.0,0.00021915,2]
[361874908,1747861757219,-500.0,0.00021916,2]
[361874909,1747861757244,-500.0,0.00021916,2]
[361874910,1747861757265,-500.0,0.00021916,2]
[361874911,1747861757288,-615.35281986,0.00021916,2]
[361874912,1747861757311,-500.0,0.00021916,2]
[361874913,1747861757334,-500.0,0.00021916,2]
[361874914,1747861757356,-416.12441827,0.00021916,2]